Cogmind - Beta 13 @@@ ROGUE MODE // 2024.04.01 @ 15:04:40 Player: SnaveSutit Result: Destroyed by G-47 Trooper with Particle Gun Performance ------------- Evolutions (2) 1000 Regions Visited (5) 1000 Robots Destroyed (23) 115 Value Destroyed (461) 461 Prototype IDs (4) 80 Alien Tech Used (0) 0 Bonus (300) 300 TOTAL SCORE: 2956 Bonus ------- Aligned with FarCom 300 Cogmind --------- Core Integrity 0/550 Matter 151/300 Energy 70/100 System Corruption 0% Temperature Warm (198) Movement Core (150) Ox2 Location -8/Materials Parts ------- > --- POWER (2) -------- (None) > --- PROPULSION (3) --- (None) > --- UTILITY (4) ------ Small Storage Unit > --- WEAPON (2) ------- Field Laser > --- INVENTORY (8) ---- (None) Peak State ------------ > --- POWER ------------ Light Ion Engine Light Nuclear Core > --- PROPULSION ------- Light Treads Light Treads > --- UTILITY ---------- Small Storage Unit Superbattery Seismic Detector Advanced Targeting Computer > --- WEAPON ----------- Precision Beam Rifle Improved Assault Rifle > --- INVENTORY -------- Hover Unit Improved Heat Sink Shield Generator Assault Rifle Light Assault Rifle Grenade Launcher [Rating: 28] Favorites ----------- Power Light Ion Engine Engine Light Ion Engine Power Core Light Nuclear Core Propulsion Light Treads Treads Light Treads Hover Unit Hover Unit Utility Small Storage Unit Device Seismic Detector Storage Small Storage Unit Processor Advanced Targeting Computer Weapon Light Assault Rifle Energy Gun Precision Beam Rifle Energy Cannon Guided Plasma Cannon Ballistic Gun Light Assault Rifle Launcher Grenade Launcher Build | -11 -10 -10 -10 -9 -8 ------- Run | Yrd Mat Min Exi Min Mat Slots Evolved 4 | . . . . . 4 Power 1 | . . . . . 1 Propulsion 1 | . . . . . 1 Utility 2 | . . . . . 2 Weapon . | . . . . . . Parts Attached 29 | 6 3 . 3 2 15 Power 3 | 1 . . . 1 1 Engine 2 | 1 . . . 1 . Core 1 | . . . . . 1 Reactor . | . . . . . . Propulsion 3 | 2 . . . . 1 Treads 2 | 2 . . . . . Leg . | . . . . . . Wheel . | . . . . . . Hover 1 | . . . . . 1 Flight . | . . . . . . Utility 9 | 1 1 . 1 1 5 Device 5 | . 1 . . 1 3 Storage 3 | 1 . . 1 . 1 Processor 1 | . . . . . 1 Hackware . | . . . . . . Protection . | . . . . . . Artifact . | . . . . . . Weapon 14 | 2 2 . 2 . 8 Energy Gun 4 | . . . . . 4 Energy Cannon 1 | . . . 1 . . Ballistic Gun 6 | 2 1 . 1 . 2 Ballistic Cannon . | . . . . . . Launcher 3 | . 1 . . . 2 Special Weapon . | . . . . . . Impact Weapon . | . . . . . . Slashing Weapon . | . . . . . . Piercing Weapon . | . . . . . . Special Melee Weapon . | . . . . . . Unidentified Prototypes 4 | . . . 2 . 2 Parts Lost 15 | . . 1 . . 14 Power 3 | . . 1 . . 2 Propulsion 3 | . . . . . 3 Utility 5 | . . . . . 5 Weapon 4 | . . . . . 4 Highest Loss Streak 10 | . . 1 . . 10 To Critical Strikes . | . . . . . . Average Slot Usage (%) 85 | . 91 85 84 92 80 Engine 5 | . 14 . . 6 8 Core 1 | . . . . . 5 Treads 24 | . 28 28 28 28 16 Device 9 | . 6 14 10 6 9 Storage 17 | . 14 14 17 21 17 Processor 2 | . . . . . 7 Energy Gun 1 | . . . . . 5 Ballistic Gun 12 | . 15 14 13 14 8 Launcher 10 | . 12 14 14 14 2 Naked Turns . | . . . . . . Heaviest Build 24 | 11 13 13 13 16 24 Greatest Support 40 | 40 40 40 40 40 40 Greatest Overweight (x) 4 | . . . . . 4 Average Overweight (x) . | . . . . . . Largest Inventory Capacity 8 | 8 8 8 8 8 8 Average Capacity 7 | 6 8 8 8 6 8 Most Carried 6 | 2 3 2 6 4 6 Average Carried 2 | . 1 2 2 3 3 Final Capacity 8 | 8 8 8 8 5 8 Final Carried 3 | . 2 2 3 3 . Class Distribution -------------------- 100% | Mutant Dominant Class ---------------- Mutant | -10/Materials Mutant | -10/Mines Mutant | -10/Exiles Mutant | -9/Mines Mutant | -8/Materials Resources | -11 -10 -10 -10 -9 -8 ----------- Run | Yrd Mat Min Exi Min Mat Matter Collected 476 | 156 102 21 . 117 80 Remotely . | . . . . . . Salvage Created 370 | . 145 46 . 76 103 Parts 27 | . 8 1 . 15 3 Haulers Intercepted . | . . . . . . Recyclers Shooed . | . . . . . . Parts Field Recycled . | . . . . . . Retrieved Matter . | . . . . . . Parts Self-Destructed . | . . . . . . Prevented . | . . . . . . Kills | -11 -10 -10 -10 -9 -8 ------- Run | Yrd Mat Min Exi Min Mat Combat Hostiles Destroyed 20 | . 5 2 . 11 2 Guns 7 | . 2 1 . 3 1 AOE 13 | . 3 1 . 8 1 Classes Destroyed 3 | . 3 . . . . Watcher 3 | . 3 . . . . Swarmer 14 | . 3 . . 11 . Grunt 6 | . 2 2 . . 2 Best Kill Streak 8 | . 8 2 . 4 1 Combat Bots Only 5 | . 5 2 . 4 1 Max Kills in Single Turn 3 | . 2 1 . 3 1 Gunslinging . | . . . . . . Exploded 3 | . 2 1 . 3 1 Melee . | . . . . . . Uniques/NPCs Destroyed . | . . . . . . Combat | -11 -10 -10 -10 -9 -8 -------- Run | Yrd Mat Min Exi Min Mat Hostile Shots Fired 176 | . 36 10 . 19 111 Missed 51 | . 11 2 . 3 35 Damage Taken 1976 | . 231 141 . 165 1439 Core 667 | . 29 18 . 59 561 Absorbed by Shields 89 | . . . . . 89 Core Remaining (%) 78 | 100 . . . 57 . Volleys Fired 65 | . 24 6 . 12 23 Largest 2 | . 2 2 . 2 2 Hottest 84 | . 50 50 . 50 84 Shots Fired 87 | . 27 9 . 18 33 Gun 74 | . 24 6 . 12 32 Cannon . | . . . . . . Launcher 13 | . 3 3 . 6 1 Special . | . . . . . . Kinetic 58 | . 24 6 . 12 16 Thermal 16 | . . . . . 16 Explosive 13 | . 3 3 . 6 1 Electromagnetic . | . . . . . . Robot Hit Streak 8 | . 3 8 . 3 5 Robot Miss Streak 3 | . 3 . . 2 1 Penetration Max . | . . . . . . Secondary Targets . | . . . . . . Shots Hit Robots 51 | . 11 7 . 8 25 Core Hits 45 | . 15 6 . 13 11 Critical Kills . | . . . . . . Critical Parts Destroyed 1 | . . . . . 1 Critical Strikes 1 | . . . . . 1 Destroy 1 | . . . . . 1 Melee Attacks . | . . . . . . Impact . | . . . . . . Slashing . | . . . . . . Piercing . | . . . . . . Sneak Attacks . | . . . . . . Combat Hostiles . | . . . . . . Follow-up Attacks . | . . . . . . Damage Inflicted 1585 | . 418 197 . 493 477 Guns 585 | . 99 39 . 47 400 Cannons . | . . . . . . Explosions 1000 | . 319 158 . 446 77 Melee . | . . . . . . Ramming . | . . . . . . Kinetic 345 | . 99 39 . 47 160 Thermal 240 | . . . . . 240 Explosive 1000 | . 319 158 . 446 77 Electromagnetic . | . . . . . . Impact . | . . . . . . Slashing . | . . . . . . Piercing . | . . . . . . Highest Corruption . | . . . . . . Average Corruption . | . . . . . . Corruption Purged . | . . . . . . Corruption Blocked . | . . . . . . Overload Shots . | . . . . . . Overflow Damage 3 | . . 3 . . . Projectiles . | . . . . . . Explosions 3 | . . 3 . . . Melee . | . . . . . . Knockbacks . | . . . . . . Impact . | . . . . . . Kinetic . | . . . . . . Secondary . | . . . . . . Self-Inflicted Damage 59 | . 6 23 . 30 . Shots 4 | . 1 2 . 1 . Rammed . | . . . . . . Targets Rammed . | . . . . . . Kicked . | . . . . . . Crushed . | . . . . . . Highest Temperature 180 | . 16 33 . 10 180 Average Temperature 43 | . 8 15 . 7 58 Received Heat Transfer 746 | . 60 66 . . 620 Siege Activations . | . . . . . . Robots Corrupted . | . . . . . . Combat Hostiles . | . . . . . . Parts Fried . | . . . . . . Impact Corruptions . | . . . . . . Robots Melted . | . . . . . . Combat Hostiles . | . . . . . . Parts Melted . | . . . . . . Heat Transferred 518 | . . . . . 518 Parts Sabotaged . | . . . . . . Parts Stolen . | . . . . . . Parts Stripped . | . . . . . . Power Chain Reactions . | . . . . . . Alert | -11 -10 -10 -10 -9 -8 ------- Run | Yrd Mat Min Exi Min Mat Peak Influence 215 | . 198 139 . 215 69 Initial 76 | . . 76 . . 49 Average 69 | . 47 136 . 137 25 Maximum Alert Level 1 | . . . . 1 . Low Security (%) 92 | 100 100 100 . 73 100 Level 1 7 | . . . . 26 . Level 2 . | . . . . . . Level 3 . | . . . . . . Level 4 . | . . . . . . Level 5 . | . . . . . . High Security . | . . . . . . Max Security . | . . . . . . Squads Dispatched 4 | . . . . . 4 Investigation 1 | . . . . . 1 Extermination . | . . . . . . Reinforcement 3 | . . . . . 3 Assault . | . . . . . . Garrison . | . . . . . . Intercept . | . . . . . . Searches Triggered . | . . . . . . Construction Impeded . | . . . . . . Haulers Reinforced . | . . . . . . Active Scanning Responses . | . . . . . . Cargo Convoy Interrupts . | . . . . . . Stealth | -11 -10 -10 -10 -9 -8 --------- Run | Yrd Mat Min Exi Min Mat Distress Signals 2 | . 2 . . . . Communications Jammed . | . . . . . . Distress Signals . | . . . . . . Times Spotted 32 | . 10 2 . 8 12 Peak Tracking Total 7 | . 7 2 . 4 7 Tactical Retreats 1 | . . . . . 1 Traps | -11 -10 -10 -10 -9 -8 ------- Run | Yrd Mat Min Exi Min Mat Traps Triggered . | . . . . . . Indirectly . | . . . . . . Trap Hack Attempts . | . . . . . . Triggered . | . . . . . . Disarmed . | . . . . . . Reprogrammed . | . . . . . . Reused . | . . . . . . Traps Extracted . | . . . . . . Installed . | . . . . . . Triggered . | . . . . . . Machines | -11 -10 -10 -10 -9 -8 ---------- Run | Yrd Mat Min Exi Min Mat Machines Disabled 5 | . 2 1 . 2 . Max in Single Turn 2 | . 2 1 . 2 . Machines Repaired . | . . . . . . Machines Dismantled . | . . . . . . Machines Sabotaged . | . . . . . . Overloaded Fab Kills . | . . . . . . Hacking | -11 -10 -10 -10 -9 -8 --------- Run | Yrd Mat Min Exi Min Mat Machines Accessed 5 | . . . 4 . 1 Terminals 1 | . . . . . 1 Fabricators . | . . . . . . Repair Stations . | . . . . . . Recycling Units . | . . . . . . Scanalyzers . | . . . . . . Garrison Access . | . . . . . . Total Hacks 52 | . . . 49 . 3 Successful 51 | . . . 49 . 2 Failed 1 | . . . . . 1 Catastrophic 1 | . . . . . 1 Database Lockouts . | . . . . . . Manual 2 | . . . 2 . . Terminals 3 | . . . . . 3 Fabricators . | . . . . . . Repair Stations . | . . . . . . Recycling Units . | . . . . . . Scanalyzers . | . . . . . . Garrison Access . | . . . . . . Terminal Hacks 51 | . . . 49 . 2 Record 49 | . . . 49 . . Alert Level 1 | . . . . . 1 Locate Traps 1 | . . . . . 1 Fabricator Hacks . | . . . . . . Repair Station Hacks . | . . . . . . Recycling Unit Hacks . | . . . . . . Scanalyzer . | . . . . . . Garrison Access Hacks . | . . . . . . Unauthorized Hacks . | . . . . . . Terminals . | . . . . . . Fabricators . | . . . . . . Repair Stations . | . . . . . . Recycling Units . | . . . . . . Scanalyzers . | . . . . . . Garrison Access . | . . . . . . Data Cores Recovered . | . . . . . . Used . | . . . . . . Hacking Detections 1 | . . . . . 1 Full Trace Events 1 | . . . . . 1 Feedback Events . | . . . . . . Feedback Blocked . | . . . . . . Robot Schematics Acquired . | . . . . . . Robots Built . | . . . . . . Authchips . | . . . . . . Time . | . . . . . . Total Robot Build Rating . | . . . . . . Part Schematics Acquired . | . . . . . . Parts Built . | . . . . . . Authchips . | . . . . . . Time . | . . . . . . Total Part Build Rating . | . . . . . . Parts Repaired . | . . . . . . Time . | . . . . . . Parts Recycled . | . . . . . . Recycled Matter . | . . . . . . Retrieved Matter . | . . . . . . Retrieved Components . | . . . . . . Parts Scanalyzed . | . . . . . . Part Schematics Acquired . | . . . . . . Parts Damaged . | . . . . . . Bothacking | -11 -10 -10 -10 -9 -8 ------------ Run | Yrd Mat Min Exi Min Mat Used RIF Installer . | . . . . . . Robots Hacked . | . . . . . . Non-combat . | . . . . . . Combat . | . . . . . . Robot Hacks Applied . | . . . . . . Relay Couplers Released . | . . . . . . Fabnet Peak Effective % . | . . . . . . Robots Rewired . | . . . . . . Allies Hacked . | . . . . . . Hacks Repelled . | . . . . . . Allies | -11 -10 -10 -10 -9 -8 -------- Run | Yrd Mat Min Exi Min Mat Total Allies . | . . . . . . Largest Group . | . . . . . . Highest-Rated Group . | . . . . . . Highest-Rated Ally . | . . . . . . Total Orders . | . . . . . . Ally Attacks . | . . . . . . Total Damage . | . . . . . . Kills . | . . . . . . Allies Corrupted . | . . . . . . Allies Melted . | . . . . . . Intel | -11 -10 -10 -10 -9 -8 ------- Run | Yrd Mat Min Exi Min Mat Robot Analysis Total . | . . . . . . Derelict Logs Recovered 2 | . . 2 . . . Drone Launches . | . . . . . . Drone Recoveries . | . . . . . . Exploration | -11 -10 -10 -10 -9 -8 ------------- Run | Yrd Mat Min Exi Min Mat Turns Passed 2875 | 78 277 209 903 526 882 Spaces Moved 1319 | 47 139 123 560 252 198 Core 29 | 7 . . . . 22 Treads 1278 | 40 139 123 560 252 164 Legs . | . . . . . . Wheels . | . . . . . . Hover 12 | . . . . . 12 Flight . | . . . . . . Fastest Speed 50 | 50 160 160 160 160 120 Average Speed 159 | 143 160 160 160 160 160 Slowest Speed 250 | 160 160 160 160 160 250 Overloaded Moves . | . . . . . . Propulsion Burnouts . | . . . . . . Robots Hopped . | . . . . . . Cave-ins Triggered . | . . . . . . Exploration Rate (%) 32 | 3 24 21 84 45 18 Regions Visited 5 Branch Regions 3 Pre-discovered Areas 2 | . . 1 1 . . Known Exits Taken . | . . . . . . Unknown Exits Taken 5 | 1 1 1 1 1 . Scrap Searched 1 | . . . . 1 . Spaces Dug . | . . . . . . Terrain Destroyed 74 | . 21 13 . 34 6 Melee . | . . . . . . Projectile . | . . . . . . AOE 74 | . 21 13 . 34 6 Terrain Rammed . | . . . . . . Walls Destroyed . | . . . . . . Machines Disabled . | . . . . . . Actions | -11 -10 -10 -10 -9 -8 --------- Run | Yrd Mat Min Exi Min Mat Total 2016 | 58 172 128 567 359 732 Wait 579 | . . . . 93 486 Move 1314 | 46 138 122 559 251 198 Hop . | . . . . . . Pick Up 22 | 6 5 . 3 1 7 Fast Attach . | . . . . . . Attach 20 | 6 1 . 1 1 11 Detach 2 | . . . . . 2 Swap 9 | . 2 . 2 1 4 Drop 5 | . 2 . 2 . 1 Fire 65 | . 24 6 . 12 23 Melee . | . . . . . . Ram . | . . . . . . Kick . | . . . . . . Crush . | . . . . . . Escape Stasis . | . . . . . . Rewire . | . . . . . . Trap . | . . . . . . Miscellaneous . | . . . . . . Route ------- -11/Scrapyard -10/Materials -10/Mines -10/Exiles -9/Mines (discovered 2 exits: *Mat x2) -8/Materials History --------- Turn | Location | Event 3 | -11/Scrapyard | Discovered new exit (range 15) 79 | -11/Scrapyard | Entered Materials 192 | -10/Materials | Discovered new exit (range 16) 317 | -10/Materials | Build established: Mutant 356 | -10/Materials | Entered Mines 357 | -10/Mines | Assembled infested the area 399 | -10/Mines | Learned 4 Materials zone layouts 423 | -10/Mines | Learned location of Zion (-7) 428 | -10/Mines | Met 8R-AWN 557 | -10/Mines | Discovered new exit (range 5) 565 | -10/Mines | Entered Exiles 589 | -10/Exiles | Discovered new exit (range 15) 637 | -10/Exiles | Welcomed by 8R-AWN 671 | -10/Exiles | Met EX-HEX 745 | -10/Exiles | Met EX-DEC 882 | -10/Exiles | Visited The Gauntlet 1140 | -10/Exiles | Met EX-BIN 1173 | -10/Exiles | Aligned with FarCom system 1175 | -10/Exiles | Given EX-Vault access code 1233 | -10/Exiles | Opened EX-Vault 1245 | -10/Exiles | Found Prototype Energy Cannon 1246 | -10/Exiles | Identified Gui. Plasma Cannon 1253 | -10/Exiles | Found Prototype Ballistic Cannon 1258 | -10/Exiles | Found Prototype Storage 1259 | -10/Exiles | Identified Superbattery 1343 | -10/Exiles | Warned to stay clear of 0b10 Research branches 1410 | -10/Exiles | Learned about 8R-AWN's background 1468 | -10/Exiles | Left Exiles lab with Superbattery 1468 | -10/Exiles | Entered Mines 1764 | -9/Mines | Discovered new exit (range 11) 1830 | -9/Mines | Discovered new exit (range 5) 1994 | -9/Mines | Entered Materials 1994 | -8/Materials | Evolved 4 slots: Power x1, Propulsion x1, Utility x2 2837 | -8/Materials | Lost 10 parts (2p2n2u4w) 2848 | -8/Materials | Core integrity fell below 50% 2871 | -8/Materials | Core integrity fell below 20% 2876 | -8/Materials | Destroyed by G-47 Trooper with Particle Gun Last Messages --------------- Assault Rifle destroyed. Prc. Beam Rifle destroyed. U-05 Engineer lays Concrete. Knocked back. R-06 Scavenger collects Lgt. Ion Engine. U-05 Engineer lays Concrete. R-06 Scavenger collects Sml. Matter Pod. O-16 Technician: "IFF HANDSHAKE FAILED. SECURING TERMINAL." ALERT: Hostiles spotted, dispatching reinforcements to Terminal M004. Hover Unit destroyed. Acquired Field Laser. Critical hit (Burn: +37). Imp. Heat Sink destroyed. Seismic Detector destroyed. Critical hit (Burn: +37). Superbattery destroyed. G-47 Trooper suffers critical hit (Burn). G-47 Trooper destroyed. Map ----- +----------------------------------------------------+ | ???????????# """ # #??""" + | | ???????????# """ # #??""" # | | ???????????# + #? # " | | ???????????# # # # " | | ???????????######## + # " | | ??????????????????# #?? # | | ??????????????????# ###?? # | | ??????????????????# #???? # " | | ??????????????????# #???? # " | | ??????????????????# #???? # " | | ??????????????????# #???? # | | ??????????????????# #????????# ? | | ??????????????????# #????????# " | | ??????????????????# #????????# " | | ???????????###+##?# #????????# " | | ???????????# ### ########## | | ???????????# ^ | | ???????????# T ^ | | ???????????# ### ########## | | ?????######## ##?#+#????????# | | ?????# g # #?????????????# | | ?????#!! g + +????????###### % | | ?????#!!! gg# #??????+ | | ?????#!! [!# #????????#######/# | | ?????# %g# #??????????# | | ?????# @ # #??????????# | | ?????######## #?Y????????# | | ????????????# #??????????# | | ????######### ############ | | ????# / | | ????# ####### | | ????#################?????# | | ??????????????????????????####### | | ????????????????????????????????? | | ????????????????????????????????? | | ????????????????????????????????? | | | | | | | | | | | | | | | | | | | | | | | | | | | | | +----------------------------------------------------+ Best States ------------- Heat Dissipation 45 Energy Generation 19 Energy Capacity 1685 Matter Stores 221 Matter Capacity 300 Sight Range 16 Terrain Scan Density 10 Evasion (%) 40 Targeting Accuracy 8 Recoil Reduction 2 Item Schematics ----------------- None Robot Schematics ------------------ None Fabricated ------------ Nothing Alien Tech Used ----------------- None Achievements -------------- Librarian Tourist Challenges ------------ None Game ------ Seed TacticalRecyclingCorpse Manual? 0 Play Time 00:43:41 Cumulative 3.9 hours Start 2024.04.01 @ 14:17:35 End 2024.04.01 @ 15:04:40 Sessions 1 Manual Loads 0 Difficulty Rogue Special Mode None Game No. 4 Rogue 4 Adventurer 0 Explorer 0 Win Type - Total 0 Types 0/0/0/0/0/0/0/0/0 Lore% 10 Gallery% 10 Achievement% 8 Wizard Run 0 Options --------- Layout 1 ASCII 0 Keyboard 0 Movement Mouse Keybinds 0 Fullscreen 2 Font 24/Smallcaps Map View 50x35 Zoom Use 0% Tactical HUD 0 Map Filters NONE Filters NONE Steam 1 RUN: 43519356-6e2f-43e5-bda8-79306127b152